bitfinex/quotes_ETHUSD_20220113
["timestamp","ask_amount","ask_price","bid_price","bid_amount"]
[1642105286264,0.47320307,3254.3,3254.1,1.88351677]
[1642105286565,0.47320307,3254.3,3254.1,0.3]
[1642105286967,0.47320307,3254.3,3254.0,0.1229]
[1642105287565,1.24141307,3254.3,3254.0,0.1229]
[1642105288005,1.24141307,3254.3,3253.9,0.12403685]
[1642105289007,0.023865,3254.2,3253.9,0.12403685]
[1642105289207,0.792125,3254.2,3253.9,0.00113685]
[1642105290507,0.792125,3254.2,3253.8,0.00170527]
[1642105291109,0.023865,3254.2,3253.8,0.00170527]
[1642105291563,1.24140307,3254.3,3253.8,0.30170527]
[1642105291964,0.47320307,3254.3,3253.9,0.00113685]
[1642105292163,0.47320307,3254.3,3254.0,0.00902244]
[1642105292365,0.47320307,3254.3,3253.9,0.00113685]
[1642105292565,0.47320307,3254.3,3254.0,0.1229]
[1642105292765,0.47320307,3254.3,3253.9,0.12403685]
[1642105293065,1.24141307,3254.3,3253.9,0.12403685]
[1642105293767,2.935507,3254.0,3253.9,0.00113685]
[1642105294165,0.035507,3254.0,3253.9,0.00113685]
[1642105294365,0.035507,3254.0,3253.8,0.00170527]
[1642105294965,0.035507,3254.0,3253.5,3.16779322]
[1642105294966,0.035507,3254.0,3253.6,0.00284212]
[1642105295164,0.47320307,3254.3,3253.6,0.00284212]
[1642105295419,0.47320307,3254.3,3253.9,0.46183684]
[1642105295815,0.47320307,3254.3,3253.6,0.12574212]
[1642105296216,0.47320307,3254.3,3253.7,0.00227369]
[1642105296415,0.47320307,3254.3,3253.7,0.77046369]
[1642105296815,0.47320307,3254.3,3253.9,0.03059577]
[1642105297018,0.47320307,3254.3,3253.9,2.40582481]
[1642105297019,0.49596607,3254.3,3253.9,2.40582481]
[1642105297217,0.49596607,3254.3,3253.9,2.37522904]
[1642105297617,0.47320307,3254.3,3253.9,2.37522904]
[1642105298623,0.47320307,3254.3,3254.0,1.96224935]
[1642105299466,0.47320307,3254.3,3254.2,0.49837508]
[1642105300067,0.47320307,3254.3,3254.2,0.79837508]
[1642105300270,0.47320307,3254.3,3254.2,8.24137508]
[1642105300466,30.76455289,3254.8,3254.2,8.24137508]
[1642105300670,30.76455289,3254.8,3254.3,1.03059577]
[1642105300968,0.00341054,3254.7,3254.5,1.20015047]
[1642105301173,0.00341054,3254.7,3254.5,1.64315047]
[1642105301370,30.76455289,3254.8,3254.5,2.78554667]
[1642105301371,0.00284212,3254.6,3254.5,2.78554667]
[1642105301571,0.00284212,3254.6,3254.5,3.83389047]
[1642105302914,0.00284212,3254.6,3254.5,8.96393304]
[1642105304113,0.00284212,3254.6,3254.5,8.19609304]
[1642105304313,0.00284212,3254.6,3254.5,5.02829982]
[1642105306760,0.00284212,3254.6,3254.5,3.82814935]
[1642105307461,0.00284212,3254.6,3254.5,6.91911406]
[1642105307864,0.00284212,3254.6,3254.5,8.23905481]
[1642105308063,0.00284212,3254.6,3254.5,6.69594257]
[1642105308868,0.00284212,3254.6,3254.5,6.57304257]
[1642105309665,26.67705501,3254.8,3254.6,0.03059577]
[1642105309865,26.67705501,3254.8,3254.5,6.89799257]
[1642105310714,26.67705501,3254.8,3254.5,5.89799257]
[1642105310913,26.67705501,3254.8,3254.5,5.08004257]
[1642105311113,26.67705501,3254.8,3254.7,2.37465116]
[1642105311414,26.67819185,3254.8,3254.7,2.37465116]
[1642105311613,26.62819185,3254.8,3254.7,2.37465116]
[1642105312013,26.62819185,3254.8,3254.6,4.28690051]
[1642105312812,26.62819185,3254.8,3254.6,2.37465116]
[1642105317569,26.62819185,3254.8,3254.7,2.37465116]
[1642105317823,26.57819185,3254.8,3254.7,2.37465116]
[1642105318617,26.57819185,3254.8,3254.7,1.58317668]
[1642105319317,26.57819185,3254.8,3254.7,2.02617668]
[1642105319917,26.57819185,3254.8,3254.7,2.81765116]
[1642105320117,26.57819185,3254.8,3254.7,2.37465116]
[1642105320318,26.53342185,3254.8,3254.7,2.37465116]
[1642105320819,26.53342185,3254.8,3254.6,2.37465116]
[1642105321017,0.7682,3254.7,3254.6,2.37465116]
[1642105321218,0.029968,3254.7,3254.6,2.37465116]
[1642105321868,0.029968,3254.7,3254.4,1.58336622]
[1642105322065,0.7680906,3254.5,3254.4,1.58336622]
[1642105322466,26.53342185,3254.8,3254.4,1.58450307]
[1642105323071,26.53342185,3254.8,3254.4,0.00113685]
[1642105323269,28.06947085,3254.8,3254.4,0.00113685]
[1642105323468,26.53342185,3254.8,3254.4,0.00113685]
[1642105324173,0.026653,3254.6,3254.4,0.00113685]
[1642105324769,0.026653,3254.6,3254.4,2.37578801]
[1642105325620,0.76816,3254.6,3254.4,2.37578801]
[1642105325821,1.5362723,3254.6,3254.4,2.37578801]
[1642105326219,1.5362723,3254.6,3254.4,0.00113685]
[1642105326619,1.5362723,3254.6,3254.3,0.00170527]
[1642105327221,1.5362723,3254.6,3254.3,2.37635643]
[1642105327623,0.76809,3254.5,3254.4,0.00113685]
[1642105328420,0.76809,3254.5,3254.3,0.00170527]
[1642105328621,1.5361633,3254.5,3254.3,0.00170527]
[1642105328823,0.76816,3254.6,3254.3,0.53039169]
[1642105329065,27.30140185,3254.8,3254.4,0.02242195]
[1642105329266,27.30140185,3254.8,3254.4,0.0235588]
[1642105329472,27.30140185,3254.8,3254.4,0.00113685]
[1642105329866,28.06939445,3254.8,3254.4,0.00113685]
[1642105330067,27.30140185,3254.8,3254.5,0.1229]
[1642105330266,27.30140185,3254.8,3254.4,0.1229]
[1642105331070,28.06945185,3254.8,3254.4,0.1229]
[1642105331275,28.83748185,3254.8,3254.6,2.37480142]
[1642105332271,28.06945185,3254.8,3254.5,4.43460679]
[1642105332918,27.30140185,3254.8,3254.5,4.43460679]
[1642105333119,27.30140185,3254.8,3254.6,0.01421025]
[1642105333321,26.53342185,3254.8,3254.6,0.1228]
[1642105333819,26.53342185,3254.8,3254.7,2.05980537]
[1642105334624,26.53342185,3254.8,3254.5,2.49760142]
[1642105335223,26.53342185,3254.8,3254.5,2.37480142]
[1642105335421,26.53342185,3254.8,3254.6,4.43460679]
[1642105336674,0.02558,3254.7,3254.6,4.43460679]
[1642105336875,0.02558,3254.7,3254.5,2.37480142]
[1642105337874,27.30160185,3254.8,3254.5,0.56712989]
[1642105338075,26.53342185,3254.8,3254.5,1.01012989]
[1642105338274,26.53342185,3254.8,3254.5,1.08468609]
[1642105338974,26.53342185,3254.8,3254.6,2.37480142]
[1642105339174,0.024563,3254.7,3254.6,2.49760142]
[1642105339375,26.53342185,3254.8,3254.6,2.37480142]
[1642105340419,26.53342185,3254.8,3254.5,2.37480142]
[1642105341015,26.53342185,3254.8,3254.5,3.14282142]
[1642105341217,26.53342185,3254.8,3254.5,2.37480142]
[1642105341416,26.53228501,3254.8,3254.7,1.58322843]
[1642105341818,26.55790901,3254.8,3254.7,1.58322843]
[1642105342219,27.32599321,3254.8,3254.7,1.58322843]
[1642105343517,27.30036921,3254.8,3254.7,1.58322843]
[1642105344169,27.30036921,3254.8,3254.5,1.58322843]
[1642105344170,29.40288418,3254.8,3254.5,1.58322843]
[1642105344369,0.7681619,3254.7,3254.5,1.58322843]
[1642105344972,0.7901009,3254.7,3254.5,1.58322843]
[1642105345669,0.7681619,3254.7,3254.5,1.58322843]
[1642105348019,0.7181619,3254.7,3254.6,1.58322843]
[1642105349421,1.4863019,3254.7,3254.4,2.37480142]
[1642105349622,0.76815,3254.6,3254.4,2.37480142]
[1642105350123,0.792022,3254.6,3254.4,2.37480142]
[1642105350326,0.792022,3254.6,3254.5,0.1229]
[1642105350327,0.76815,3254.6,3254.5,0.1229]
[1642105350722,0.76815,3254.6,3254.4,1.58348162]
[1642105350922,0.026128,3254.5,3254.4,1.58348162]
[1642105351126,0.026128,3254.5,3254.3,0.00170527]
[1642105351323,0.026128,3254.5,3254.4,0.00113685]
[1642105351570,0.772458,3254.5,3254.3,0.00170527]
[1642105351776,0.7682,3254.5,3254.3,0.00170527]
[1642105351973,28.92996719,3254.8,3254.3,0.00170527]
[1642105352173,0.7681951,3254.5,3254.3,0.00170527]
[1642105352376,0.7681951,3254.5,3254.1,0.00284212]
[1642105352377,10.3229,3254.4,3254.1,0.00284212]
[1642105352579,10.3229,3254.4,3254.0,0.00284354]
[1642105352580,5.43688,3254.3,3254.0,0.00284354]
[1642105352773,5.0,3254.1,3253.8,3.16779322]
[1642105352981,0.1229,3254.2,3253.9,2.37538219]
[1642105353174,5.6370307,3254.1,3253.7,0.1229]
[1642105353374,0.7685624,3253.9,3253.7,0.1229]
[1642105354374,1.5371624,3253.8,3253.7,0.1229]
[1642105354574,2.89951058,3253.9,3253.1,0.1229]
[1642105354777,2.81546569,3253.8,3253.7,0.00113684]
[1642105354977,0.76858,3253.8,3253.7,0.00113684]
[1642105356220,3.61885877,3253.8,3253.7,0.00113684]
[1642105356422,2.10290947,3253.8,3253.7,0.00113684]
[1642105357321,4.15998397,3253.8,3253.7,0.00113684]
[1642105358822,2.10290947,3253.8,3253.7,0.00113684]
[1642105359066,4.17842394,3253.8,3253.7,0.00113684]
[1642105359671,2.10290947,3253.8,3253.7,0.00113684]
[1642105360469,6.25290947,3253.8,3253.7,0.00113684]
[1642105360669,6.25290947,3253.8,3252.9,3.16779322]
[1642105360670,5.7229,3253.7,3252.9,3.16779322]
[1642105360875,0.76864,3253.2,3252.9,3.16779322]
[1642105361074,0.1229,3253.1,3252.9,3.16779322]
[1642105361273,0.7229,3253.1,3252.4,3.92574146]
[1642105361475,0.8986,3253.1,3252.4,3.92574146]
[1642105361685,0.8986,3253.1,3252.5,0.00682109]
[1642105361686,0.443,3253.0,3252.5,0.00682109]
[1642105361974,2.30676,3252.7,3252.5,0.00682109]
[1642105362175,0.1229,3252.6,3252.5,0.00682109]
[1642105362474,0.1229,3252.6,3252.4,3.59266255]
[1642105362675,0.14707947,3252.6,3252.0,3.59266255]
[1642105362925,0.1229,3252.6,3252.0,3.59266255]
[1642105363119,0.1229,3252.6,3252.1,0.00227369]
[1642105363321,0.76893,3252.5,3252.1,0.00227369]
[1642105363521,0.76884,3252.4,3252.1,0.00227369]
[1642105364120,0.7688521,3252.3,3251.9,0.00341054]
[1642105364321,3.18316,3252.3,3251.9,0.00341054]
[1642105364521,0.76893,3252.2,3251.9,0.00341054]
[1642105364822,0.76893,3252.2,3251.1,0.00795792]
[1642105365021,0.76893,3252.2,3251.2,0.123]
[1642105365222,0.76893,3252.2,3251.4,1.39947087]
[1642105365421,0.7689373,3251.9,3251.5,0.123]
[1642105365621,1.5378773,3251.9,3251.5,0.12868423]
[1642105365921,1.5378773,3251.9,3251.6,0.00511581]
[1642105366125,1.5378773,3251.9,3251.7,0.123]
[1642105366321,1.2878773,3251.9,3251.7,0.123]
[1642105366575,1.2878773,3251.9,3251.8,0.00397896]
[1642105367170,1.2878773,3251.9,3251.6,0.00511581]
[1642105367371,1.2878773,3251.9,3251.7,0.123]
[1642105367571,0.76884,3252.1,3251.7,0.123]
[1642105367771,0.76884,3252.1,3251.8,0.00397896]
[1642105368372,0.76884,3252.1,3251.8,1.22421239]
[1642105368675,0.76884,3252.1,3251.9,0.00341054]
[1642105369670,0.76884,3252.1,3251.9,1.22364397]
[1642105369871,0.76884,3252.1,3251.9,4.39239117]
[1642105370073,0.76884,3252.1,3252.0,0.00284211]
[1642105372016,0.76884,3252.1,3251.8,3.1687472]
[1642105372017,0.76884,3252.1,3251.9,0.00341054]
[1642105372216,1.66974,3252.1,3251.9,0.00341054]
[1642105372616,1.79274,3252.1,3251.9,0.00341054]
[1642105373017,2.56166,3252.1,3251.8,0.00397896]
[1642105373216,0.7689,3252.0,3251.8,0.00397896]
[1642105373416,1.5377986,3252.0,3251.8,0.00397896]
[1642105373817,1.5377986,3252.0,3251.8,2.80780858]
[1642105374074,0.17456212,3252.2,3251.8,2.80780858]
[1642105374372,0.05156212,3252.2,3251.9,0.00341054]
[1642105374671,0.05156212,3252.2,3252.0,0.1229]
[1642105375167,0.05156212,3252.2,3252.1,1.58359619]
[1642105375367,0.05156212,3252.2,3252.1,1.70649619]
[1642105375768,0.05156212,3252.2,3252.1,1.58359619]
[1642105376368,0.05156212,3252.2,3252.1,4.37023343]
[1642105376574,0.05156212,3252.2,3252.1,1.22023343]
[1642105378016,0.05156212,3252.2,3252.1,1.52023343]
[1642105378216,2.30577,3253.4,3252.1,1.52023343]
[1642105378217,0.1229,3253.5,3252.1,4.16953535]
[1642105378417,3.936011,3253.7,3252.3,0.03059577]
[1642105378418,7.744411,3253.7,3252.3,0.03059577]
[1642105378616,0.00511582,3253.4,3252.3,3.07946839]
[1642105378818,3.6855,3253.7,3252.4,0.1229]
[1642105378819,0.00625266,3253.6,3252.4,0.1229]
[1642105379017,6.03710695,3254.1,3253.2,1.17494692]
[1642105379018,0.00454739,3253.3,3253.2,1.17494692]
[1642105379221,0.00568424,3253.5,3253.3,0.01492485]
[1642105379417,1.56570695,3254.1,3253.3,0.01492485]
[1642105379617,0.00852636,3254.0,3253.3,0.01492485]
[1642105379818,0.00852636,3254.0,3253.4,0.1229]
[1642105380019,0.00227369,3253.9,3253.4,0.1229]
[1642105380222,0.00227369,3253.9,3253.0,0.1229]
[1642105380420,0.00170527,3253.8,3253.0,0.1229]
[1642105380622,0.00170527,3253.8,3253.1,0.00227369]
[1642105380822,0.00113685,3253.7,3253.1,0.00227369]
[1642105381020,0.7685515,3253.5,3253.1,0.00227369]
[1642105381225,0.7685515,3253.5,3253.1,1.22023343]
[1642105381421,0.8915,3253.4,3253.1,1.22023343]
[1642105381669,0.76862,3253.3,3253.2,0.00170527]
[1642105382269,0.76862,3253.3,3253.2,1.2219387]
[1642105382472,5.41862,3253.3,3252.5,1.57825216]
[1642105382769,1.53766,3252.8,3252.6,0.00341054]
[1642105382972,3.2326,3252.8,3252.6,0.00341054]
[1642105383170,4.5326,3252.8,3252.6,0.00341054]
[1642105383569,1.35369107,3252.7,3252.6,0.00341054]
[1642105383771,0.76897,3252.5,3252.1,1.57825216]
[1642105383970,0.76898,3252.3,3252.2,0.0022737]
[1642105384573,1.76898,3252.3,3252.2,0.0022737]
[1642105384769,0.76898,3252.3,3252.2,0.0022737]
[1642105384970,1.76898,3252.3,3252.2,0.0022737]
[1642105385172,3.3069419,3252.3,3252.2,0.0022737]
[1642105385825,4.0258935,3252.3,3252.0,0.00341054]
[1642105386026,6.3327635,3252.3,3252.0,0.00341054]
[1642105386426,2.53791,3252.3,3251.6,0.00568424]
[1642105386627,0.76891,3252.0,3251.6,0.00568424]
[1642105386829,1.0,3252.3,3251.6,0.00568424]
[1642105387028,0.3,3252.4,3251.6,1.5839364]
[1642105387428,0.7688637,3252.3,3251.7,0.00511581]
[1642105387728,0.76888,3252.1,3251.7,0.00511581]
[1642105388129,0.76888,3252.1,3251.7,1.58336797]
[1642105388428,0.76888,3252.1,3251.8,0.00454739]
[1642105388628,0.76887,3252.2,3251.8,0.00454739]
[1642105388833,1.53765,3252.4,3251.8,0.00454739]
[1642105389071,0.76881,3252.4,3251.8,0.12744739]
[1642105389468,0.76881,3252.4,3251.9,0.00397897]
[1642105389873,0.7688171,3252.3,3251.9,0.00397897]
[1642105390170,0.76888,3252.2,3251.9,0.00397897]
[1642105390571,0.76888,3252.2,3251.8,0.00454739]
[1642105390770,1.5377723,3252.3,3251.8,0.00454739]
[1642105391374,0.7688134,3252.3,3251.8,0.58608548]
[1642105391574,1.3361,3252.9,3252.3,0.44866796]
[1642105391773,1.2132,3252.9,3252.4,0.1229]
[1642105391975,3.6697,3253.0,3252.4,0.00113685]
[1642105391976,0.00113685,3252.8,3252.4,0.00113685]
[1642105392379,0.00170527,3252.9,3252.4,0.00113685]
[1642105392821,0.00113685,3252.8,3252.4,0.00113685]
[1642105393222,0.00341054,3253.2,3252.1,1.58109428]
[1642105393424,0.1229,3253.1,3252.1,1.58109428]
[1642105393622,0.00284212,3253.1,3252.2,0.00568424]
[1642105393824,0.1229,3253.0,3252.2,0.00568424]
[1642105394025,0.76875,3252.7,3252.2,0.00568424]
[1642105394323,0.76888,3252.5,3252.0,0.00682108]
[1642105394623,1.36888,3252.5,3252.0,0.00682108]
[1642105394823,0.6,3252.5,3252.0,0.00682108]
[1642105395025,0.3,3252.4,3252.0,0.00682108]
[1642105395226,0.8918,3252.3,3252.0,0.00682108]
[1642105395423,1.66079,3252.3,3252.0,0.00682108]
[1642105395622,2.96079,3252.3,3252.0,0.00682108]
[1642105395823,0.7689125,3252.2,3251.9,0.00738951]
[1642105396425,0.3,3252.1,3251.9,0.00738951]
[1642105396869,0.768871,3252.0,3251.7,0.00852635]
[1642105397270,1.3,3252.1,3251.7,0.00852635]
[1642105397471,0.72291354,3252.1,3251.9,0.018855]
[1642105397868,0.72291354,3252.1,3252.0,0.00682108]
[1642105397869,1.45090953,3252.1,3252.0,0.00682108]
[1642105398471,1.27810303,3252.1,3252.0,0.00682108]
[1642105398869,1.27810303,3252.1,3251.6,0.00909478]
[1642105399072,1.27810303,3252.1,3251.7,0.016367]
[1642105399271,1.70797151,3252.1,3251.7,0.016367]
[1642105399474,1.70797151,3252.1,3252.0,3.42997453]
[1642105399672,1.70797151,3252.1,3252.0,0.57997453]
[1642105399872,1.70797151,3252.1,3252.0,0.58679561]
[1642105400073,1.70797151,3252.1,3252.0,1.42225865]
[1642105400326,1.70797151,3252.1,3252.0,0.00682108]
[1642105400527,2.16111227,3252.1,3252.0,0.00682108]
[1642105400724,2.16111227,3252.1,3252.0,1.57825216]
[1642105401124,2.16111227,3252.1,3252.0,1.58507324]
[1642105401526,2.76111227,3252.1,3252.0,1.58507324]
[1642105401725,3.53006227,3252.1,3252.0,0.00682108]
[1642105401926,4.53006227,3252.1,3251.7,1.57825216]
[1642105402125,0.76909,3251.9,3251.7,1.57825216]
[1642105402325,0.76909,3251.9,3251.8,0.00113685]
[1642105402527,6.4381793,3251.9,3251.7,1.57825216]
[1642105402725,4.38118943,3251.8,3251.4,2.36737824]
[1642105402934,0.443,3251.7,3251.4,2.36737824]
[1642105403126,2.7,3251.5,3251.3,0.85176212]
[1642105403330,0.123,3251.4,3251.3,0.85176212]
[1642105403526,2.66151,3251.4,3251.3,0.85176212]
[1642105403730,2.66151,3251.4,3251.3,0.85289897]
[1642105403731,1.66151,3251.4,3251.3,0.85289897]
[1642105403927,2.66151,3251.4,3251.3,0.85289897]
[1642105404773,2.66151,3251.4,3251.2,1.57872211]
[1642105404774,3.0,3251.3,3251.2,1.57872211]
[1642105404976,0.05018992,3251.2,3250.9,2.36737824]
[1642105405175,1.5385198,3251.1,3250.8,0.123]
[1642105405376,1.8385198,3251.1,3251.0,0.00170527]
[1642105405577,3.1385198,3251.1,3251.0,0.00170527]
[1642105405777,0.76925,3250.9,3250.6,0.00397896]
[1642105405978,0.6,3250.9,3250.6,0.00397896]
[1642105406177,1.0,3251.1,3250.6,0.00397896]
[1642105406378,1.0,3251.7,3250.7,0.70886094]
[1642105406578,9.46291227,3252.1,3250.7,0.70886094]
[1642105406579,1.3451,3251.9,3250.8,0.016836]
[1642105406778,1.3451,3251.9,3250.9,0.123]
[1642105406779,0.00170527,3251.6,3250.9,0.123]
[1642105406977,0.00284212,3251.8,3250.9,0.12527369]
[1642105407178,0.00113685,3251.5,3251.2,1.30296005]
[1642105407378,0.0022737,3251.7,3251.2,1.30296005]
[1642105407576,0.00284212,3251.8,3250.9,0.12527369]
[1642105407825,0.00170527,3251.6,3250.9,0.12527369]
[1642105408024,0.76902,3251.5,3250.9,0.12527369]
[1642105408227,0.77015685,3251.5,3250.9,0.12527369]
[1642105408424,0.76902,3251.5,3250.9,0.12527369]
[1642105409025,0.76902,3251.5,3250.9,0.12607369]
[1642105409224,0.02287393,3251.4,3251.0,1.54239121]
[1642105409424,1.12584212,3251.8,3251.2,0.016858]
[1642105409625,0.60284212,3251.8,3251.2,0.016858]
[1642105409825,0.0022737,3251.7,3251.2,0.016858]
[1642105410125,2.28411227,3252.1,3251.1,0.00113684]
[1642105410126,0.77069527,3251.6,3251.1,0.00113684]
[1642105410327,0.77069527,3251.6,3251.1,0.12413684]
[1642105410524,1.83916005,3251.5,3251.1,0.12413684]
[1642105410926,0.01934042,3251.4,3251.1,0.14051584]
[1642105411124,1.83916005,3251.5,3251.1,0.14051584]
[1642105411326,1.53916005,3251.5,3251.1,0.12413684]
[1642105411593,1.53916005,3251.5,3251.1,0.00113684]
[1642105411594,2.3073288,3251.4,3251.1,0.00113684]
[1642105411779,0.79153435,3251.3,3251.1,0.00113684]
[1642105411979,0.7691115,3251.3,3251.1,0.00113684]
[1642105412379,1.53917685,3251.5,3251.1,0.00113684]
[1642105412682,0.00113685,3251.5,3251.1,0.50049861]
[1642105412880,1.1798,3252.2,3251.4,0.017465]
[1642105413080,1.34382983,3251.2,3251.1,6.94936177]
[1642105413279,1.34382983,3251.2,3251.1,6.45]
[1642105413481,1.34382983,3251.2,3251.1,6.45227369]
[1642105413679,0.00227369,3251.9,3251.2,9.35]
[1642105413881,0.00227369,3251.9,3251.3,3.10114043]
[1642105414080,8.596e-05,3252.1,3251.8,0.01295138]
[1642105414480,8.596e-05,3252.1,3251.9,0.443]
[1642105414679,8.596e-05,3252.1,3251.9,1.2114567]
[1642105414879,8.596e-05,3252.1,3251.9,1.5114567]
[1642105415079,8.596e-05,3252.1,3252.0,2.20156695]
[1642105415337,8.596e-05,3252.1,3252.0,12.96506695]
[1642105415538,0.00122281,3252.1,3252.0,13.96506695]
[1642105416338,0.00122281,3252.1,3252.0,14.08796695]
[1642105416841,0.00122281,3252.1,3252.0,11.8864]
[1642105417439,0.00041178,3252.1,3252.0,11.8864]
[1642105418339,13.27737,3253.7,3253.5,0.60603327]
[1642105418340,5.77222278,3253.7,3253.5,0.60603327]
[1642105418644,2.6787584,3254.6,3253.1,0.71836]
[1642105418645,1.0,3254.3,3253.1,0.71836]
[1642105418839,0.1229,3254.2,3253.1,0.61836]
[1642105419085,0.00909478,3253.7,3253.1,0.61836]
[1642105419576,0.00852635,3253.6,3253.0,0.52973355]
[1642105419776,0.00852635,3253.6,3253.1,0.1229]
[1642105419978,0.00795793,3253.5,3253.1,0.1229]
[1642105420378,0.00738951,3253.4,3253.1,0.1229]
[1642105420679,0.00682108,3253.3,3253.1,0.1229]
[1642105421081,0.00625266,3253.2,3253.1,0.1229]
[1642105421879,0.00625266,3253.2,3253.1,4.7729]
[1642105422679,0.00625266,3253.2,3253.1,0.1229]
[1642105423832,0.00625266,3253.2,3253.1,3.5729]
[1642105424327,0.00625266,3253.2,3253.1,5.14790749]
[1642105424529,0.00625266,3253.2,3253.1,1.69790749]
[1642105425429,0.00625266,3253.2,3253.1,0.55388976]
[1642105425632,0.00625266,3253.2,3253.1,0.43098976]
[1642105426702,2.09697138,3253.2,3253.1,0.43098976]
[1642105427395,1.94697138,3253.2,3253.1,0.43098976]
[1642105427597,1.94697138,3253.2,3253.1,0.30408798]
[1642105427796,1.94697138,3253.2,3252.8,1.84243557]
[1642105427996,1.94697138,3253.2,3252.8,0.5133401]
[1642105428198,1.94697138,3253.2,3252.9,0.00170527]
[1642105428596,1.94697138,3253.2,3252.9,1.14645075]
[1642105429000,1.94697138,3253.2,3253.0,0.00113685]
[1642105429897,1.91330586,3253.2,3253.0,0.00113685]
[1642105430095,0.46464315,3253.4,3253.0,0.00113685]
[1642105430729,0.93731122,3253.4,3253.0,0.00113685]
[1642105430927,0.93731122,3253.4,3253.0,1.51238685]
[1642105431125,0.93731122,3253.4,3253.0,2.81238685]
[1642105431726,0.61750855,3253.4,3253.0,2.81238685]
[1642105431927,0.61750855,3253.4,3253.1,2.36263186]
[1642105432126,0.61750855,3253.4,3253.2,0.12954984]
[1642105432427,0.61750855,3253.4,3253.2,0.1229]
[1642105433028,0.47110855,3253.4,3253.2,0.89109]
[1642105433230,0.47110855,3253.4,3253.3,0.443]
[1642105433427,0.47110855,3253.4,3253.3,6.4159]
[1642105433627,0.0011454,3253.4,3253.3,7.4159]
[1642105434091,0.0011454,3253.4,3253.3,0.5659]
[1642105434280,0.0011454,3253.4,3253.3,2.48553186]
[1642105434478,0.0011454,3253.4,3253.3,2.36263186]
[1642105434879,0.01249791,3253.9,3253.3,2.36263186]
[1642105435084,0.443,3254.2,3253.3,2.36263186]
[1642105435280,0.1229,3254.1,3253.3,2.36263186]
[1642105435479,0.76853,3253.7,3253.0,0.00113685]
[1642105435679,0.76851,3253.6,3253.0,0.00113685]
[1642105435878,0.03464893,3253.5,3253.0,0.0022737]
[1642105436079,0.76964684,3253.6,3253.0,0.0022737]
[1642105437080,0.89146,3253.5,3253.0,0.0022737]
[1642105437282,0.89146,3253.5,3252.9,0.00284212]
[1642105437283,4.57834629,3253.4,3252.9,0.00284212]
[1642105437481,0.1229,3253.3,3252.9,0.00284212]
[1642105437679,1.4229,3253.3,3252.9,0.00284212]
[1642105437927,0.7687,3253.2,3252.9,0.00284212]
[1642105438129,1.0687,3253.2,3252.9,0.00284212]
[1642105438327,0.76867,3253.2,3252.9,0.00284212]
[1642105438528,1.76867,3253.2,3252.8,0.00341054]
[1642105438928,0.3,3253.1,3252.8,0.00341054]
[1642105439334,1.0686075,3253.1,3252.8,0.00341054]
[1642105439629,1.0686075,3253.1,3252.6,0.00454739]
[1642105439829,0.73199397,3253.1,3252.6,0.00454739]
[1642105442178,1.50059397,3253.1,3252.6,1.41859591]
[1642105442379,2.26920397,3253.1,3252.6,0.00454739]
[1642105442579,2.26920397,3253.1,3252.7,0.00397897]
[1642105442779,2.26920397,3253.1,3252.6,0.00454739]
[1642105442780,0.7686392,3252.9,3252.6,0.00454739]
[1642105442979,2.3060292,3252.9,3252.6,0.00454739]
[1642105443382,0.76866,3252.8,3252.6,0.00454739]
[1642105443979,0.76866,3252.8,3252.5,0.00511582]
[1642105444179,1.53731,3252.8,3252.5,0.12801582]
[1642105444582,1.53731,3252.8,3252.6,0.00454739]
[1642105444992,1.83731,3252.8,3252.6,0.00454739]
[1642105445187,2.12486791,3252.7,3252.5,1.58948322]
[1642105445439,2.12486791,3252.7,3252.6,0.00454739]
[1642105445634,6.77486791,3252.7,3252.6,0.00454739]
[1642105445834,6.77486791,3252.7,3252.5,1.5843674]
[1642105445835,3.64076791,3252.7,3252.5,1.5843674]
[1642105446035,0.7690183,3252.3,3252.0,1.5843674]
[1642105446334,3.12892527,3252.2,3252.1,0.00284212]
[1642105446535,4.39622527,3252.2,3252.1,0.00284212]
[1642105446834,5.39622527,3252.2,3252.1,0.00284212]
[1642105447036,5.39622527,3252.2,3252.0,1.5843674]
[1642105447037,2.85,3252.1,3252.0,1.5843674]
[1642105447234,6.0389608,3252.1,3252.0,1.5843674]
[1642105447432,6.1618608,3252.1,3252.0,1.5843674]
[1642105448034,6.1618608,3252.1,3251.5,1.5843674]
[1642105448035,3.3118608,3252.1,3251.5,1.5843674]
[1642105448237,1.5378748,3251.9,3251.5,1.5843674]
[1642105448435,1.5378748,3251.9,3251.6,0.00284212]
[1642105448635,1.5378748,3251.9,3251.6,0.12584212]
[1642105449091,2.3068148,3251.9,3251.7,0.00227369]
[1642105449478,1.06899,3251.8,3251.7,0.00227369]
[1642105449682,4.33013616,3251.8,3251.3,1.5843674]
[1642105449879,0.76911,3251.6,3251.3,1.5843674]
[1642105450078,3.0764382,3251.6,3251.4,0.00170527]
[1642105450980,5.3837682,3251.6,3251.2,0.00284212]
[1642105451179,1.55914895,3251.5,3251.2,0.00284212]
[1642105451378,1.53803,3251.5,3251.2,0.00284212]
[1642105451579,4.15762353,3251.5,3251.2,0.00284212]
[1642105451983,3.38861353,3251.5,3251.3,0.57622367]
[1642105452179,2.61959353,3251.5,3251.4,4.873]
[1642105452381,2.61959353,3251.5,3251.4,4.823]
[1642105452581,1.53769,3251.9,3251.4,4.823]
[1642105452830,2.50598162,3252.3,3251.4,0.073]
[1642105453029,3.27469162,3252.3,3251.5,0.00113685]
[1642105453231,0.00284211,3252.2,3251.6,0.123]
[1642105453630,0.00227369,3252.1,3251.6,0.123]
[1642105453830,0.00227369,3252.1,3251.9,1.5843674]
[1642105454029,1.53932527,3252.0,3251.9,1.5843674]
[1642105454831,2.30815907,3252.0,3251.9,1.5843674]
[1642105455134,2.30815907,3252.0,3251.6,0.123]
[1642105455135,5.22107129,3252.0,3251.6,0.123]
[1642105455331,0.019381,3251.7,3251.6,0.123]
[1642105455930,0.76893,3251.8,3251.6,0.123]
[1642105455931,0.738311,3251.8,3251.6,0.123]
[1642105456131,0.738311,3251.8,3251.5,1.58550425]
[1642105456132,2.61404906,3251.9,3251.5,0.00113685]
[1642105456333,2.61404906,3251.9,3251.6,0.123]
[1642105456978,2.61404906,3251.9,3251.7,0.76862]
[1642105457180,2.50598162,3252.6,3251.9,0.76841]
[1642105457379,2.50598162,3252.6,3252.5,9.376157]
[1642105457578,0.122949,3252.7,3252.5,10.10238722]
[1642105457782,0.122949,3252.7,3252.6,0.1229]
[1642105457980,0.122949,3252.7,3252.6,0.5659]
[1642105458178,0.12749639,3252.7,3252.6,0.5659]
[1642105459382,0.12749639,3252.7,3252.6,6.1159]
[1642105460183,0.00454739,3252.7,3252.6,6.1159]
[1642105460632,0.00454739,3252.7,3252.6,7.1159]
[1642105461431,0.00454739,3252.7,3252.6,8.70029302]